fUST/lending_fUST_20260517
["ID","MTS","AMOUNT","RATE_DAILY","PERIOD"]
[422478422,1778986238000,-649.40318357,6.297e-05,2]
[422478419,1778986238000,-649.40318357,6.297e-05,2]
[422478375,1778986238000,-500.0,6.296e-05,2]
[422478403,1778986238000,-500.0,6.296e-05,2]
[422478406,1778986238000,-500.0,6.296e-05,2]
[422478417,1778986238000,-649.40318357,6.297e-05,2]
[422478415,1778986238000,-649.40318357,6.297e-05,2]
[422478381,1778986238000,-500.0,6.296e-05,2]
[422478384,1778986238000,-500.0,6.296e-05,2]
[422478386,1778986238000,-500.0,6.296e-05,2]
[422478408,1778986238000,-500.0,6.296e-05,2]
[422478389,1778986238000,-500.0,6.296e-05,2]
[422478392,1778986238000,-500.0,6.296e-05,2]
[422478382,1778986238000,-500.0,6.296e-05,2]
[422478394,1778986238000,-500.0,6.296e-05,2]
[422478396,1778986238000,-500.0,6.296e-05,2]
[422478399,1778986238000,-500.0,6.296e-05,2]
[422478411,1778986238000,-649.40318357,6.297e-05,2]
[422478401,1778986238000,-500.0,6.296e-05,2]
[422478413,1778986238000,-649.40318357,6.297e-05,2]
[422478390,1778986238000,-500.0,6.296e-05,2]
[422478443,1778986239000,-649.40318357,6.297e-05,2]
[422478445,1778986239000,-649.40318357,6.297e-05,2]
[422478451,1778986239000,-692.69672913,6.297e-05,2]
[422478447,1778986239000,-692.69672913,6.297e-05,2]
[422478449,1778986239000,-692.69672913,6.297e-05,2]
[422478462,1778986239000,-692.69672913,6.297e-05,2]
[422478466,1778986239000,-11269.72298008,6.298e-05,2]
[422478478,1778986239000,-61795.890383,6.298e-05,2]
[422478455,1778986239000,-692.69672913,6.297e-05,2]
[422478458,1778986239000,-692.69672913,6.297e-05,2]
[422478453,1778986239000,-692.69672913,6.297e-05,2]
[422478460,1778986239000,-692.69672913,6.297e-05,2]
[422478477,1778986239000,-811.51114452,6.298e-05,2]
[422478479,1778986239000,-1856.86616958,6.298e-05,2]
[422478480,1778986239000,-27469.92636343,6.298e-05,2]
[422478464,1778986239000,-692.69672913,6.297e-05,2]
[422478896,1778986243000,-938.78636545,5.445e-05,2]
[422478905,1778986243000,-23456.97357706,6.298e-05,2]
[422478908,1778986243000,-3215.89712044,6.298e-05,2]
[422478912,1778986243000,-537.6845,6.388e-05,2]
[422478910,1778986243000,-1712.76158312,6.298e-05,2]
[422478914,1778986243000,-500.0,6.399e-05,2]
[422478916,1778986243000,-557.5788265,6.443e-05,2]
[422478903,1778986243000,-4061.21363455,5.445e-05,2]
[422478918,1778986244000,-578.20924308,6.498e-05,2]
[422478920,1778986244000,-8427.2761406,6.505e-05,2]
[422478922,1778986244000,-1685.35805315,6.505e-05,2]
[422478924,1778986244000,-760.86230765,6.505e-05,2]
[422478926,1778986244000,-2160.4035661,6.505e-05,2]
[422478928,1778986244000,-132.48791225,6.505e-05,2]
[422479240,1778986246000,-746.15432625,6.505e-05,2]
[422479241,1778986246000,-2463.79954952,6.513e-05,2]
[422479243,1778986246000,-359.964,6.571e-05,2]
[422479242,1778986246000,-599.60298507,6.553e-05,2]
[422479245,1778986246000,-647.0,6.589e-05,2]
[422479244,1778986246000,-2203.0,6.589e-05,2]
[422479248,1778986246000,-621.78829552,6.608e-05,2]
[422479247,1778986246000,-794.0,6.6e-05,2]
[422479246,1778986246000,-150.494,6.589e-05,2]
[422479249,1778986246000,-2109.74808894,6.645e-05,2]
[422479251,1778986246000,-587.0,6.654e-05,2]
[422479252,1778986246000,-644.79446246,6.663e-05,2]
[422479250,1778986246000,-4364.67969144,6.645e-05,2]
[422479254,1778986247000,-668.65185757,6.718e-05,2]
[422479255,1778986247000,-693.3919763,6.773e-05,2]
[422479253,1778986247000,-2578.11207075,6.697e-05,2]
[422479256,1778986247000,-810.20385834,6.828e-05,2]
[422479261,1778986247000,-18059.32959368,6.834e-05,2]
[422479257,1778986247000,-19475.9795917,6.834e-05,2]
[422479283,1778986520000,9014.75288689,0.00017808,120]
[422479285,1778986583000,9000.0,0.00017808,120]
[422479325,1778987432000,-513.78,5.848e-05,2]
[422479323,1778987432000,-300.0,5.382e-05,2]
[422479313,1778987432000,-1199.36598947,5.171e-05,2]
[422479327,1778987432000,-52.93427714,5.92e-05,2]
[422479319,1778987432000,-4960.15574075,5.276e-05,2]
[422479315,1778987432000,-5000.0,5.223e-05,2]
[422479317,1778987432000,-39.84425925,5.276e-05,2]
[422479330,1778987432000,-367.06572286,5.92e-05,2]
[422479332,1778987432000,-855.0,5.994e-05,2]
[422479321,1778987432000,-480.21240291,5.356e-05,2]
[422479344,1778987432000,-500.0,5.995e-05,2]
[422479342,1778987432000,-500.0,5.995e-05,2]
[422479350,1778987432000,-500.0,5.995e-05,2]
[422479340,1778987432000,-500.0,5.995e-05,2]
[422479348,1778987432000,-500.0,5.995e-05,2]
[422479352,1778987432000,-387.0293819,5.995e-05,2]
[422479338,1778987432000,-500.0,5.995e-05,2]
[422479336,1778987432000,-500.0,5.995e-05,2]
[422479334,1778987432000,-500.0,5.995e-05,2]
[422479346,1778987432000,-501.81945367,5.995e-05,2]
[422479503,1778987438000,-500.0,5.995e-05,2]
[422479507,1778987438000,-500.0,5.995e-05,2]
[422479517,1778987438000,-500.0,5.995e-05,2]
[422479515,1778987438000,-500.0,5.995e-05,2]
[422479505,1778987438000,-500.0,5.995e-05,2]
[422479490,1778987438000,-288.11245275,5.995e-05,2]
[422479488,1778987438000,-500.0,5.995e-05,2]
[422479494,1778987438000,-500.0,5.995e-05,2]
[422479486,1778987438000,-500.0,5.995e-05,2]
[422479501,1778987438000,-500.0,5.995e-05,2]
[422479496,1778987438000,-500.0,5.995e-05,2]
[422479499,1778987438000,-500.0,5.995e-05,2]
[422479492,1778987438000,-500.0,5.995e-05,2]
[422479482,1778987438000,-5000.0,5.935e-05,2]
[422479511,1778987438000,-500.0,5.995e-05,2]
[422479484,1778987438000,-112.9706181,5.995e-05,2]
[422479509,1778987438000,-500.0,5.995e-05,2]
[422479553,1778987438000,-272.1750197,5.996e-05,2]
[422479513,1778987438000,-500.0,5.995e-05,2]
[422479550,1778987438000,-1754.00211669,5.996e-05,2]
[422479547,1778987438000,-44647.95790649,5.996e-05,2]
[422479541,1778987438000,-500.0,5.995e-05,2]
[422479525,1778987438000,-500.0,5.995e-05,2]
[422479545,1778987438000,-217.02531827,5.995e-05,2]
[422479543,1778987438000,-500.0,5.995e-05,2]
[422479537,1778987438000,-500.0,5.995e-05,2]
[422479539,1778987438000,-500.0,5.995e-05,2]
[422479535,1778987438000,-500.0,5.995e-05,2]
[422479532,1778987438000,-500.0,5.995e-05,2]
[422479529,1778987438000,-500.0,5.995e-05,2]
[422479523,1778987438000,-413.00281314,5.995e-05,2]
[422479527,1778987438000,-500.0,5.995e-05,2]
[422479519,1778987438000,-500.0,5.995e-05,2]
[422479521,1778987438000,-500.0,5.995e-05,2]
[422479533,1778987438000,-500.0,5.995e-05,2]
[422479576,1778987439000,-649.40318357,6.093e-05,2]
[422479572,1778987439000,-649.40318357,6.093e-05,2]
[422479568,1778987439000,-649.40318357,6.093e-05,2]
[422479559,1778987439000,-2923.86707462,5.996e-05,2]
[422479570,1778987439000,-649.40318357,6.093e-05,2]
[422479562,1778987439000,-17683.54928211,5.996e-05,2]
[422479557,1778987439000,-42182.37006305,5.996e-05,2]
[422479564,1778987439000,-649.40318357,6.093e-05,2]
[422479574,1778987439000,-649.40318357,6.093e-05,2]
[422479580,1778987439000,-649.40318357,6.093e-05,2]
[422479578,1778987439000,-649.40318357,6.093e-05,2]
[422479582,1778987439000,-649.40318357,6.093e-05,2]
[422479597,1778987439000,-32568.97018402,6.096e-05,2]
[422479595,1778987439000,-15783.78347553,6.096e-05,2]
[422479584,1778987439000,-649.40318357,6.093e-05,2]
[422479586,1778987439000,-649.40318357,6.093e-05,2]
[422479588,1778987439000,-649.40318357,6.093e-05,2]
[422479593,1778987439000,-649.40318357,6.093e-05,2]
[422479591,1778987439000,-649.40318357,6.093e-05,2]
[422479566,1778987439000,-649.40318357,6.093e-05,2]
[422479860,1778987441000,-3865.52177311,6.096e-05,2]
[422480238,1778987444000,-398.77670356,6.096e-05,2]
[422480246,1778987444000,-4364.03691393,6.096e-05,2]
[422480254,1778987444000,-4574.14783359,6.411e-05,2]
[422480252,1778987444000,-1677.54871939,6.411e-05,2]
[422480248,1778987444000,-152.0,6.285e-05,7]
[422480250,1778987444000,-4219.1790476,6.411e-05,2]
[422480643,1778987447000,-4391.97794692,6.411e-05,2]
[422480664,1778987447000,-185.0,6.621e-05,2]
[422480662,1778987447000,-741.0,6.621e-05,2]
[422480660,1778987447000,-445.633,6.621e-05,2]
[422480666,1778987447000,-1107.99746711,6.697e-05,2]
[422480646,1778987447000,-3592.805835,6.411e-05,2]
[422480650,1778987447000,-500.0,6.497e-05,2]
[422480658,1778987447000,-2068.705,6.621e-05,2]
[422480654,1778987447000,-335.419,6.608e-05,2]
[422480648,1778987447000,-2299.9488482,6.411e-05,2]
[422480652,1778987447000,-587.0,6.512e-05,2]
[422480656,1778987447000,-647.0,6.621e-05,2]
[422482755,1778987608000,989.62,0.00017808,120]
[422482933,1778988489000,1828.68,0.00017808,120]
[422482934,1778988494000,250.18065,0.00017808,120]
[422482952,1778988560000,300.0,0.00017808,120]
[422482966,1778988635000,-5000.0,5.226e-05,2]
[422482977,1778988637000,-1811.84831752,5.708e-05,2]
[422482973,1778988637000,-300.0,5.358e-05,2]
[422482975,1778988637000,-475.89992103,5.359e-05,2]
[422482976,1778988637000,-5767.86072516,5.696e-05,2]
[422482968,1778988637000,-1905.92221814,5.279e-05,2]
[422482971,1778988637000,-2129.14734301,5.279e-05,2]
[422482970,1778988637000,-513.00241066,5.279e-05,2]
[422482969,1778988637000,-451.92802819,5.279e-05,2]
[422482980,1778988637000,-210.87334338,5.795e-05,2]
[422482972,1778988637000,-1200.0,5.331e-05,2]
[422482979,1778988637000,-500.0,5.795e-05,2]
[422482974,1778988637000,-300.0,5.358e-05,2]
[422482982,1778988637000,-500.0,5.795e-05,2]
[422483017,1778988637000,-500.0,5.795e-05,2]
[422482978,1778988637000,-500.0,5.795e-05,2]
[422483011,1778988637000,-500.0,5.795e-05,2]
[422483010,1778988637000,-500.0,5.795e-05,2]
[422483013,1778988637000,-500.0,5.795e-05,2]
[422483015,1778988637000,-500.0,5.795e-05,2]
[422482985,1778988637000,-254.42026455,5.795e-05,2]
[422482983,1778988637000,-500.0,5.795e-05,2]
[422482984,1778988637000,-500.0,5.795e-05,2]
[422482981,1778988637000,-500.0,5.795e-05,2]
[422483008,1778988637000,-245.57973545,5.795e-05,2]
[422483061,1778988638000,-446.15043527,5.796e-05,2]
[422483046,1778988638000,-500.0,5.795e-05,2]
[422483050,1778988638000,-500.0,5.795e-05,2]
[422483056,1778988638000,-52653.46124189,5.796e-05,2]
[422483054,1778988638000,-500.0,5.795e-05,2]
[422483044,1778988638000,-500.0,5.795e-05,2]
[422483059,1778988638000,-3746.24925059,5.796e-05,2]
[422483048,1778988638000,-500.0,5.795e-05,2]
[422483052,1778988638000,-500.0,5.795e-05,2]
[422483042,1778988638000,-500.0,5.795e-05,2]
[422483019,1778988638000,-500.0,5.795e-05,2]
[422483038,1778988638000,-500.0,5.795e-05,2]
[422483040,1778988638000,-500.0,5.795e-05,2]
[422483022,1778988638000,-500.0,5.795e-05,2]
[422483036,1778988638000,-280.02813141,5.795e-05,2]
[422483034,1778988638000,-500.0,5.795e-05,2]
[422483030,1778988638000,-500.0,5.795e-05,2]
[422483026,1778988638000,-500.0,5.795e-05,2]
[422483028,1778988638000,-500.0,5.795e-05,2]
[422483032,1778988638000,-500.0,5.795e-05,2]
[422483063,1778988638000,-645.68277805,5.796e-05,2]
[422483024,1778988638000,-500.0,5.795e-05,2]
[422483086,1778988638000,-178.8752698,6.111e-05,2]
[422483065,1778988638000,-14244.80066381,5.796e-05,2]
[422483069,1778988638000,-4430.46618411,5.808e-05,2]
[422483119,1778988638000,-453377.03520595,6.834e-05,2]
[422483111,1778988638000,-3230.92213593,6.697e-05,2]
[422483117,1778988638000,-400.61232023,6.8e-05,2]
[422483115,1778988638000,-794.0,6.7e-05,2]
[422483107,1778988638000,-185.0,6.648e-05,2]
[422483105,1778988638000,-741.0,6.648e-05,2]
[422483101,1778988638000,-2218.946,6.648e-05,2]
[422483095,1778988638000,-587.0,6.483e-05,2]
[422483103,1778988638000,-647.0,6.648e-05,2]
[422483109,1778988638000,-443.0,6.648e-05,2]
[422483113,1778988638000,-14000.0,6.7e-05,2]
[422483099,1778988638000,-324.381,6.601e-05,2]
[422483093,1778988638000,-151.29359045,6.401e-05,2]
[422483097,1778988638000,-500.0,6.488e-05,2]
[422483076,1778988638000,-1505.30811761,5.908e-05,2]
[422483071,1778988638000,-420.0,5.894e-05,2]
[422483067,1778988638000,-186.49685278,5.796e-05,2]
[422483084,1778988638000,-3186.6398749,6.111e-05,2]
[422483082,1778988638000,-3969.6610849,6.111e-05,2]
[422483091,1778988638000,-9667.7019173,6.308e-05,2]
[422483078,1778988638000,-7049.08405071,6.008e-05,2]
[422483073,1778988638000,-4373.56620657,5.908e-05,2]
[422483080,1778988638000,-7518.3688659,6.108e-05,2]
[422483089,1778988638000,-9157.86340772,6.208e-05,2]
[422483702,1778988643000,-484.72416911,6.834e-05,2]
[422483696,1778988643000,-3757.44924428,6e-05,2]
[422483700,1778988643000,-2153.94809062,6.697e-05,2]
[422483698,1778988643000,-1242.55075572,6e-05,2]
[422484133,1778988646000,-360.69996,6.834e-05,2]
[422484121,1778988646000,-1435.96539375,6.697e-05,2]
[422484123,1778988646000,-47010.22784089,6.834e-05,2]
[422485354,1778989365000,-163.0,7.148e-05,21]
[422485355,1778989479000,-151.0,7.148e-05,21]
[422485364,1778989801000,5000.0,5e-05,2]
[422485365,1778989823000,5000.0,5e-05,2]
[422485368,1778989831000,-1875.57172218,5.099e-05,2]
[422485372,1778989832000,-471.79345946,5.281e-05,2]
[422485370,1778989832000,-300.0,5.277e-05,2]
[422485369,1778989832000,-3124.42827782,5.099e-05,2]
[422485373,1778989832000,-1200.0,5.499e-05,2]
[422485376,1778989832000,-262.56754446,5.5e-05,2]
[422485375,1778989832000,-1975.78535251,5.5e-05,2]
[422485371,1778989832000,-300.0,5.277e-05,2]
[422485374,1778989832000,-1709.02260397,5.5e-05,2]
[422485501,1778989838000,-1178.46010429,6.108e-05,2]
[422485452,1778989838000,-1141.08499418,6.108e-05,2]
[422485454,1778989838000,-1141.08499418,6.108e-05,2]
[422485456,1778989838000,-1141.08499418,6.108e-05,2]
[422485464,1778989838000,-1141.08499418,6.108e-05,2]
[422485458,1778989838000,-1141.08499418,6.108e-05,2]
[422485460,1778989838000,-1141.08499418,6.108e-05,2]
[422485461,1778989838000,-1141.08499418,6.108e-05,2]
[422485448,1778989838000,-1137.16373991,6.108e-05,2]
[422485469,1778989838000,-1141.08499418,6.108e-05,2]
[422485474,1778989838000,-1141.08499418,6.108e-05,2]
[422485477,1778989838000,-1141.08499418,6.108e-05,2]
[422485471,1778989838000,-1141.08499418,6.108e-05,2]
[422485473,1778989838000,-1141.08499418,6.108e-05,2]
[422485466,1778989838000,-1141.08499418,6.108e-05,2]
[422485467,1778989838000,-1141.08499418,6.108e-05,2]
[422485436,1778989838000,-500.0,6.107e-05,2]
[422485433,1778989838000,-420.0,5.805e-05,2]
[422485409,1778989838000,-1490.23659569,5.5e-05,2]
[422485411,1778989838000,-3177.16759829,5.5e-05,2]
[422485407,1778989838000,-451.40333634,5.5e-05,2]
[422485417,1778989838000,-428.47,5.5e-05,2]
[422485425,1778989838000,-157.21359335,5.5e-05,2]
[422485438,1778989838000,-500.0,6.107e-05,2]
[422485440,1778989838000,-500.0,6.107e-05,2]
[422485489,1778989838000,-1178.46010429,6.108e-05,2]
[422485427,1778989838000,-1948.143599,5.5e-05,2]
[422485442,1778989838000,-525.0,6.107e-05,2]
[422485445,1778989838000,-163.2282748,6.108e-05,2]
[422485429,1778989838000,-2211.24175422,5.5e-05,2]
[422485435,1778989838000,-409.78212191,6.107e-05,2]
[422485446,1778989838000,-1137.16373991,6.108e-05,2]
[422485431,1778989838000,-4555.91951487,5.591e-05,2]
[422485450,1778989838000,-1137.16373991,6.108e-05,2]
[422485494,1778989838000,-1178.46010429,6.108e-05,2]
[422485549,1778989838000,-151.57726801,6.83e-05,2]
[422485478,1778989838000,-1141.08499418,6.108e-05,2]
[422485525,1778989838000,-456.1271715,6.481e-05,2]
[422485529,1778989838000,-456.513297,6.481e-05,2]
[422485531,1778989838000,-500.0,6.578e-05,2]
[422485533,1778989838000,-321.246,6.621e-05,2]
[422485543,1778989838000,-1194.23942014,6.697e-05,2]
[422485545,1778989838000,-400.0,6.7e-05,2]
[422485547,1778989838000,-151.0,6.83e-05,2]
[422485534,1778989838000,-190.1869076,6.621e-05,2]
[422485539,1778989838000,-444.481,6.661e-05,2]
[422485541,1778989838000,-1417.109,6.661e-05,2]
[422485536,1778989838000,-184.268,6.661e-05,2]
[422485554,1778989838000,-23149.9999996,6.834e-05,2]
[422485556,1778989838000,-2403.70485075,6.834e-05,2]
[422485558,1778989838000,-64179.06910875,6.834e-05,2]
[422485483,1778989838000,-1141.08499418,6.108e-05,2]
[422485527,1778989838000,-443.0183777,6.481e-05,2]
[422485513,1778989838000,-2680.8792088,6.212e-05,2]
[422485551,1778989838000,-614969.86593817,6.834e-05,2]
[422485511,1778989838000,-1083.3889015,6.207e-05,2]
[422485499,1778989838000,-1178.46010429,6.108e-05,2]
[422485491,1778989838000,-1178.46010429,6.108e-05,2]
[422485485,1778989838000,-1141.08499418,6.108e-05,2]
[422485502,1778989838000,-1178.46010429,6.108e-05,2]
[422485492,1778989838000,-1178.46010429,6.108e-05,2]
[422485509,1778989838000,-184418.00009157,6.109e-05,2]
[422485481,1778989838000,-1141.08499418,6.108e-05,2]
[422485487,1778989838000,-1178.46010429,6.108e-05,2]
[422485515,1778989838000,-30873.0256698,6.212e-05,2]
[422485505,1778989838000,-1178.46010429,6.108e-05,2]
[422485507,1778989838000,-1178.46010429,6.108e-05,2]
[422485519,1778989838000,-325.8907786,6.479e-05,2]
[422485497,1778989838000,-1178.46010429,6.108e-05,2]
[422485521,1778989838000,-456.5367176,6.479e-05,2]
[422485517,1778989838000,-587.0,6.385e-05,2]
[422485523,1778989838000,-456.513297,6.481e-05,2]
[422485797,1778989840000,-429.42624312,6.834e-05,2]
[422485791,1778989840000,-1075.08886253,6.834e-05,2]
[422485787,1778989840000,-190.64038834,5.445e-05,2]
[422485789,1778989840000,-209.34453005,6.834e-05,2]
[422486178,1778989843000,-29271.03366541,6.834e-05,2]
[422486169,1778989843000,-796.15961342,6.697e-05,2]
[422486171,1778989843000,-3563.26031399,6.834e-05,2]
[422486181,1778989843000,-4980.29338595,6.834e-05,2]
[422486597,1778989846000,-58702.33004377,6.834e-05,2]
[422486556,1778989846000,-30347.75532823,6.834e-05,2]
[422486554,1778989846000,-530.77307561,6.697e-05,2]
[422486552,1778989846000,-2371.03746047,6.63e-05,2]
[422486550,1778989846000,-2329.18508868,6.63e-05,2]
[422486547,1778989846000,-299.77745085,6.63e-05,2]
[422487509,1778990234000,737.6184796,5e-05,2]
[422487510,1778990249000,5000.0,5e-05,2]
[422487513,1778990271000,5000.0,5e-05,2]
[422487514,1778990293000,5000.0,5e-05,2]
[422487517,1778990316000,4814.75628467,5e-05,2]
[422487555,1778990927000,24309.99,0.00017808,120]
[422487599,1778991032000,-449.47356353,5.396e-05,2]
[422487597,1778991032000,-1173.51518978,5.396e-05,2]
[422487595,1778991032000,-3207.70947378,5.396e-05,2]
[422487589,1778991032000,-210.29953602,5.155e-05,2]
[422487593,1778991032000,-375.29022241,5.396e-05,2]
[422487591,1778991032000,-300.0,5.395e-05,2]
[422487587,1778991032000,-480.11429815,5.136e-05,2]
[422487585,1778991032000,-586.79796358,5.085e-05,2]
[422487583,1778991032000,-677.76535421,5.085e-05,2]
[422487580,1778991032000,-1078.43668221,5.085e-05,2]
[422487669,1778991038000,-3182.46,5.396e-05,2]
[422487646,1778991038000,-61795.890383,5.396e-05,2]
[422487944,1778991040000,-458.9215886,5.396e-05,2]
[422487951,1778991040000,-3779.90698828,5.396e-05,2]
[422488335,1778991043000,-6619.2682547,6.242e-05,2]
[422488299,1778991043000,-2907.15669367,5.396e-05,2]
[422488303,1778991043000,-7524.02226955,5.396e-05,2]
[422488301,1778991043000,-2092.84330633,5.396e-05,2]
[422488293,1778991043000,-1750.23923043,5.396e-05,2]
[422488295,1778991043000,-251.11704093,5.396e-05,2]
[422488297,1778991043000,-3717.18683286,5.396e-05,2]
[422488306,1778991043000,-881.96118259,5.396e-05,2]
[422488308,1778991043000,-11455.54672671,5.908e-05,2]
[422488330,1778991043000,-68297.12647785,5.908e-05,2]
[422488333,1778991043000,-402.0,5.934e-05,2]
[422488332,1778991043000,-256.86190267,5.908e-05,2]
[422488346,1778991043000,-185.0,6.661e-05,2]
[422488328,1778991043000,-380.183,5.908e-05,2]
[422488361,1778991043000,-190.06754692,6.7e-05,2]
[422488359,1778991043000,-163.4939884,6.7e-05,2]
[422488348,1778991043000,-443.0,6.661e-05,2]
[422488354,1778991043000,-277.98057068,6.7e-05,2]
[422488344,1778991043000,-741.0,6.661e-05,2]
[422488352,1778991043000,-199.00988735,6.7e-05,2]
[422488340,1778991043000,-500.0,6.631e-05,2]
[422488357,1778991043000,-306.91111479,6.7e-05,2]
[422488355,1778991043000,-295.20156852,6.7e-05,2]
[422488350,1778991043000,-480.21093449,6.697e-05,2]
[422488342,1778991043000,-306.389,6.648e-05,2]
[422488337,1778991043000,-6072.9186883,6.607e-05,2]
[422488363,1778991043000,-193.22830323,6.7e-05,2]
[422488339,1778991043000,-869.688923,6.607e-05,2]
[422488373,1778991044000,-40418.32102172,6.834e-05,2]
[422488369,1778991044000,-151.0,6.83e-05,2]
[422488365,1778991044000,-185.32249927,6.7e-05,2]
[422488371,1778991044000,-151.0,6.83e-05,2]
[422488367,1778991044000,-160.0,6.8e-05,2]
[422488748,1778991047000,-89047.38367467,6.834e-05,2]
[422488755,1778991047000,-3843.56328819,6.834e-05,2]
[422488746,1778991047000,-320.140623,6.697e-05,2]
[422488763,1778991047000,-5173.0,6.834e-05,2]
[422489516,1778991279000,-151.0,7.148e-05,21]
[422489517,1778991280000,-151.0,7.148e-05,21]
[422489519,1778991464000,300.0,6.553e-05,28]
[422489520,1778991483000,1717.42821681,0.00017808,120]
[422489521,1778991635000,5000.0,5e-05,2]
[422489522,1778991643000,3645.86752267,5e-05,2]
[422489525,1778991997000,200.0,0.000178,120]
[422489693,1778992236000,-5000.0,5.061e-05,2]
[422489697,1778992237000,-500.0,5.195e-05,2]
[422489708,1778992237000,-500.0,5.195e-05,2]
[422489698,1778992237000,-500.0,5.195e-05,2]
[422489699,1778992237000,-500.0,5.195e-05,2]
[422489696,1778992237000,-500.0,5.195e-05,2]
[422489695,1778992237000,-300.0,5.194e-05,2]
[422489694,1778992237000,-482.44486572,5.12e-05,2]
[422489707,1778992237000,-388.09876268,5.195e-05,2]
[422489705,1778992237000,-500.0,5.195e-05,2]
[422489706,1778992237000,-154.3223857,5.195e-05,2]
[422489703,1778992237000,-500.0,5.195e-05,2]
[422489702,1778992237000,-500.0,5.195e-05,2]
[422489704,1778992237000,-500.0,5.195e-05,2]
[422489701,1778992237000,-500.0,5.195e-05,2]
[422489710,1778992237000,-371.41552306,5.195e-05,2]
[422489709,1778992237000,-128.58447694,5.195e-05,2]
[422489711,1778992237000,-113.10705696,5.195e-05,2]
[422489700,1778992237000,-500.0,5.195e-05,2]
[422489741,1778992238000,-500.0,5.195e-05,2]
[422489743,1778992238000,-500.0,5.195e-05,2]
[422489758,1778992238000,-2185.79058001,5.675e-05,2]
[422489745,1778992238000,-500.0,5.195e-05,2]
[422489746,1778992238000,-500.0,5.195e-05,2]
[422489742,1778992238000,-500.0,5.195e-05,2]
[422489744,1778992238000,-500.0,5.195e-05,2]
[422489738,1778992238000,-500.0,5.195e-05,2]
[422489732,1778992238000,-500.0,5.195e-05,2]
[422489740,1778992238000,-500.0,5.195e-05,2]
[422489735,1778992238000,-500.0,5.195e-05,2]
[422489736,1778992238000,-500.0,5.195e-05,2]
[422489734,1778992238000,-500.0,5.195e-05,2]
[422489733,1778992238000,-500.0,5.195e-05,2]
[422489730,1778992238000,-386.89294304,5.195e-05,2]
[422489731,1778992238000,-500.0,5.195e-05,2]
[422489757,1778992238000,-2212.16848808,5.674e-05,2]
[422489739,1778992238000,-500.0,5.195e-05,2]
[422489755,1778992238000,-770.31128433,5.5e-05,2]
[422489737,1778992238000,-500.0,5.195e-05,2]
[422489748,1778992238000,-500.0,5.195e-05,2]
[422489749,1778992238000,-500.0,5.195e-05,2]
[422489770,1778992238000,-151.0,6.491e-05,2]
[422489769,1778992238000,-151.0,6.491e-05,2]
[422489767,1778992238000,-151.0,6.491e-05,2]
[422489766,1778992238000,-537.6845,6.491e-05,2]
[422489764,1778992238000,-2928.97286289,6.348e-05,2]
[422489765,1778992238000,-1369.03582245,6.433e-05,2]
[422489762,1778992238000,-7578.7817609,6.174e-05,2]
[422489763,1778992238000,-532.51704449,6.175e-05,2]
[422489768,1778992238000,-151.0,6.491e-05,2]
[422489760,1778992238000,-2521.45671405,6.011e-05,2]
[422489759,1778992238000,-532.51704449,5.837e-05,2]
[422489754,1778992238000,-532.5170445,5.5e-05,2]
[422489751,1778992238000,-89702.55221333,5.196e-05,2]
[422489753,1778992238000,-1495.36411328,5.5e-05,2]
[422489752,1778992238000,-778.55973847,5.5e-05,2]
[422489750,1778992238000,-500.0,5.195e-05,2]
[422489747,1778992238000,-500.0,5.195e-05,2]
[422489756,1778992238000,-1478.05093217,5.5e-05,2]
[422489761,1778992238000,-2493.89228158,6.013e-05,2]
[422489805,1778992239000,-532.51704449,6.849e-05,2]
[422489808,1778992239000,-2866.29982663,6.849e-05,2]
[422489810,1778992239000,-2870.14351106,6.849e-05,2]
[422489811,1778992239000,-716.81834189,6.849e-05,2]
[422489807,1778992239000,-777.72951831,6.849e-05,2]
[422489801,1778992239000,-151.0,6.83e-05,2]
[422489809,1778992239000,-715.8583817,6.849e-05,2]
[422489806,1778992239000,-3114.03210536,6.849e-05,2]
[422489803,1778992239000,-345556.47669054,6.834e-05,2]
[422489792,1778992239000,-741.0,6.661e-05,2]
[422489813,1778992239000,-234.09016085,6.856e-05,2]
[422489814,1778992239000,-282.72999997,6.856e-05,7]
[422489812,1778992239000,-1216.50880693,6.852e-05,2]
[422489825,1778992239000,-3952.14170095,6.895e-05,2]
[422489818,1778992239000,-2864.02720552,6.875e-05,2]
[422489826,1778992239000,-4119.87378808,6.901e-05,2]
[422489824,1778992239000,-2946.04493156,6.893e-05,2]
[422489828,1778992239000,-5773.37196216,6.926e-05,2]
[422489816,1778992239000,-665.55460338,6.858e-05,2]
[422489820,1778992239000,-670.42698997,6.887e-05,2]
[422489817,1778992239000,-657.54408981,6.862e-05,2]
[422489823,1778992239000,-3814.33764352,6.89e-05,2]
[422489804,1778992239000,-500.0,6.849e-05,7]
[422489827,1778992239000,-728.40366992,6.912e-05,2]
[422489819,1778992239000,-182.33337166,6.884e-05,2]
[422489821,1778992239000,-2627.54618288,6.888e-05,2]